bitfinex/quotes_SOLUSD_20220302
["timestamp","ask_amount","ask_price","bid_price","bid_amount"]
[1646190673023,0.50334022,99.82,99.751,101.2]
[1646190673221,15.2986,99.864,99.768,60.74]
[1646190673423,15.2986,99.864,99.78,12.15]
[1646190673824,105.208,99.912,99.78,12.15]
[1646190674024,4.9099,99.912,99.782,0.36125314]
[1646190674242,4.9099,99.912,99.792,0.36125314]
[1646190674444,76.9617,99.918,99.801,101.2]
[1646190674643,101.2,99.939,99.801,101.2]
[1646190674844,73.8724,99.929,99.802,0.36125314]
[1646190675042,73.8724,99.929,99.802,2.54904003]
[1646190675043,101.2,99.927,99.802,2.54904003]
[1646190675245,15.0271,99.92,99.8,12.15]
[1646190675447,4.005,99.919,99.8,12.15]
[1646190675645,15.0271,99.92,99.801,4.005]
[1646190676342,2.54904003,99.919,99.803,0.2321264]
[1646190676543,2.54904003,99.919,99.802,2.54904003]
[1646190676544,103.74904003,99.919,99.804,4.005]
[1646190676744,3.77387318,99.919,99.801,4.005]
[1646190676943,2.54904003,99.918,99.801,4.005]
[1646190677146,5.0,99.914,99.801,4.005]
[1646190677343,50.57444963,99.913,99.801,4.005]
[1646190677544,53.12348966,99.913,99.801,4.005]
[1646190677745,2.54904003,99.912,99.801,4.005]
[1646190677948,5.0,99.909,99.801,4.005]
[1646190678345,4.005,99.939,99.801,64.745]
[1646190678346,2.54904003,99.908,99.801,64.745]
[1646190678546,5.0,99.949,99.802,4.7805825]
[1646190678748,5.0,99.949,99.822,2.44800552]
[1646190678946,5.0,99.949,99.831,62.62730316]
[1646190679144,14.9435,99.961,99.85,101.2]
[1646190679345,5.0,99.957,99.86,12.15]
[1646190679546,57.72544639,99.956,99.861,0.42733055]
[1646190679746,57.72544639,99.956,99.861,2.97637058]
[1646190679949,57.72544639,99.956,99.861,2.54904003]
[1646190680147,57.72544639,99.956,99.86,12.15]
[1646190680348,57.72544639,99.956,99.861,2.97637058]
[1646190680551,101.2,99.955,99.861,2.54904003]
[1646190680746,60.27448642,99.956,99.86,12.15]
[1646190680747,101.2,99.953,99.86,12.15]
[1646190680946,5.0,99.939,99.86,12.15]
[1646190681147,55.86526594,99.938,99.81,15.0217]
[1646190681348,55.86526594,99.938,99.84,12.15]
[1646190681548,58.41430597,99.938,99.84,12.15]
[1646190681747,2.54904003,99.937,99.84,12.15]
[1646190682346,103.74904003,99.937,99.84,12.15]
[1646190682553,101.2,99.929,99.84,12.15]
[1646190682951,3.93672624,99.928,99.84,12.15]
[1646190683151,2.54904003,99.928,99.84,12.15]
[1646190683349,2.54904003,99.927,99.84,12.15]
[1646190683549,4.003,99.937,99.84,12.15]
[1646190683749,5.0,99.932,99.84,12.15]
[1646190684251,5.0,99.932,99.841,101.2]
[1646190684449,55.86526594,99.938,99.841,103.74904003]
[1646190684750,55.86526594,99.938,99.842,2.88748722]
[1646190685151,55.86526594,99.938,99.843,2.54904003]
[1646190685453,4.003,99.997,99.848,60.74]
[1646190685659,15.0168,99.98,99.861,101.2]
[1646190685850,15.0168,99.98,99.874,60.74]
[1646190686052,5.0,99.989,99.879,161.94]
[1646190686250,2.54904003,100.01,99.89,12.15]
[1646190686452,5.0,100.01,99.9,12.15]
[1646190686652,5.0,100.01,99.91,151.88]
[1646190686853,99.12531087,100.02,99.92,12.15]
[1646190687050,6.55004003,100.01,99.93,12.15]
[1646190687251,2.54904003,100.01,99.91,12.15]
[1646190687451,48.42488051,99.999,99.85,176.3009]
[1646190687650,4.003,99.998,99.86,12.15]
[1646190687858,2.54904003,99.998,99.86,12.15]
[1646190688151,1.35431978,99.978,99.86,12.15]
[1646190688354,1.33888505,99.976,99.86,12.15]
[1646190688553,1.3199053,99.972,99.86,12.15]
[1646190688755,4.003,99.971,99.84,12.15]
[1646190689153,57.1158089,99.949,99.84,12.15]
[1646190689353,1.27973054,99.948,99.84,12.15]
[1646190689553,5.0,99.937,99.84,12.15]
[1646190690555,2.54904003,99.947,99.84,12.15]
[1646190690759,60.31338763,99.913,99.808,45.5868]
[1646190690960,60.31338763,99.913,99.76,50.0907]
[1646190690961,69.19338763,99.913,99.76,50.0907]
[1646190691255,3.7233182,99.912,99.8,12.15]
[1646190691456,7.7283182,99.912,99.8,12.15]
[1646190691655,5.0,99.892,99.757,4.0]
[1646190691855,51.53876992,99.891,99.79,12.15]
[1646190692057,5.0,99.877,99.79,12.15]
[1646190692356,58.81369789,99.876,99.79,12.15]
[1646190695061,15.0332,99.87,99.79,12.15]
[1646190695362,2.54904003,99.869,99.78,15.0316]
[1646190695760,58.81369789,99.876,99.78,27.1816]
[1646190697770,58.81369789,99.876,99.781,2.54904003]
[1646190698163,58.81369789,99.876,99.8,15.0288]
[1646190698765,58.81369789,99.876,99.78,12.15]
[1646190698965,65.62369789,99.876,99.78,12.15]
[1646190699166,1.34951972,99.875,99.76,15.0342]
[1646190699364,1.34951972,99.875,99.76,27.1842]
[1646190699566,1.19617563,99.874,99.76,27.1842]
[1646190700167,1.47668942,99.868,99.76,27.1842]
[1646190701366,4.006,99.867,99.76,27.1842]
[1646190701568,4.006,99.872,99.76,27.1842]
[1646190702168,46.89943985,99.848,99.76,27.1842]
[1646190702369,54.30943985,99.848,99.76,27.1842]
[1646190703972,1.38696501,99.847,99.76,12.15]
[1646190704170,54.30943985,99.848,99.747,2.54904003]
[1646190704371,46.89943985,99.848,99.747,2.54904003]
[1646190704573,46.89943985,99.848,99.75,12.15]
[1646190704783,15.0338,99.87,99.75,12.15]
[1646190704977,24.6635,99.872,99.76,15.0346]
[1646190705171,24.6635,99.872,99.77,12.15]
[1646190705573,24.6635,99.872,99.771,2.54904003]
[1646190705872,60.91442365,99.871,99.771,2.54904003]
[1646190706472,15.0291,99.9,99.78,15.0314]
[1646190706673,15.0291,99.9,99.79,12.15]
[1646190706871,15.0291,99.9,99.8,12.15]
[1646190707072,15.0291,99.9,99.81,12.15]
[1646190707472,50.54330759,99.899,99.81,12.15]
[1646190707672,50.54330759,99.899,99.81,27.1768]
[1646190707874,50.54330759,99.899,99.81,12.15]
[1646190708073,5.0,99.914,99.81,12.15]
[1646190708273,5.0,99.914,99.811,2.54904003]
[1646190708473,23.2111,99.918,99.811,2.54904003]
[1646190709173,47.85097294,99.917,99.811,2.54904003]
[1646190709976,47.85097294,99.917,99.81,12.15]
[1646190710176,5.0,99.922,99.811,2.87879717]
[1646190710575,4.005,99.976,99.813,0.65130699]
[1646190710777,5.38991305,99.999,99.821,0.65130699]
[1646190710978,5.0,99.969,99.831,0.65130699]
[1646190711177,52.33639692,99.968,99.833,0.65130699]
[1646190711380,56.33939692,99.968,99.833,0.65130699]
[1646190711578,1.8823152,99.924,99.833,0.65130699]
[1646190711784,1.8823152,99.924,99.835,0.65130699]
[1646190711977,1.8823152,99.924,99.89,15.0155]
[1646190712779,1.8823152,99.924,99.88,12.15]
[1646190713378,1.8823152,99.924,99.881,0.65130699]
[1646190713880,1.8823152,99.924,99.88,12.15]
[1646190714081,4.003,99.988,99.89,15.0158]
[1646190714278,126.6721,100.02,99.9,12.15]
[1646190714479,126.6721,100.02,99.901,0.65130699]
[1646190714877,126.6721,100.02,99.902,2.54904003]
[1646190715081,165.25335607,100.02,99.93,15.0071]
[1646190715381,165.25335607,100.02,99.931,0.65130699]
[1646190715779,266.45335607,100.02,99.93,12.15]
[1646190715979,165.25335607,100.02,99.931,0.65130699]
[1646190716280,165.25335607,100.02,99.94,15.0085]
[1646190716481,165.25335607,100.02,99.94,27.1585]
[1646190717581,75.3464,100.02,99.941,3.20034702]
[1646190717980,75.3464,100.02,99.96,15.0024]
[1646190718280,117.3166,100.06,99.97,12.15]
[1646190718481,277.86989157,100.06,99.97,12.15]
[1646190718688,296.87359157,100.06,99.95,12.15]
[1646190718885,179.55699157,100.06,99.95,12.15]
[1646190719084,182.1060316,100.06,99.95,12.15]
[1646190719483,178.1070316,100.06,99.95,12.15]
[1646190719685,183.1070316,100.06,99.95,12.15]
[1646190720085,178.1070316,100.06,99.95,27.1562]
[1646190720486,5.0,100.05,99.95,27.1562]
[1646190720689,169.44501775,100.03,99.95,27.1562]
[1646190721293,5.0,100.05,99.95,27.1562]
[1646190721491,2.54904003,100.07,99.951,0.65130699]
[1646190721691,15.0031,100.07,99.98,15.0017]
[1646190721992,20.0031,100.07,99.98,15.0017]
[1646190722192,65.18136343,100.07,99.98,15.0017]
[1646190722591,60.18136343,100.07,99.98,15.0017]
[1646190722790,65.18136343,100.07,99.98,15.0017]
[1646190723205,65.18136343,100.07,99.98,27.1517]
[1646190723406,60.18136343,100.07,99.98,27.1517]
[1646190724708,60.18136343,100.07,99.98,12.15]
[1646190725306,161.38136343,100.07,99.96,12.15]
[1646190725507,60.18136343,100.07,99.97,12.15]
[1646190725708,60.18136343,100.07,99.98,12.15]
[1646190725908,60.18136343,100.07,99.94,73.1368]
[1646190725909,5.0,100.06,99.94,73.1368]
[1646190726111,5.0,100.06,99.95,12.15]
[1646190726913,5.0,100.06,99.95,14.69904003]
[1646190727111,5.0,100.06,99.97,15.003]
[1646190727313,5.0,100.06,99.98,12.15]
[1646190727513,50.17826343,100.07,99.98,12.15]
[1646190728112,189.06774003,100.11,99.98,12.15]
[1646190728113,201.92764876,100.18,99.982,2.74460177]
[1646190728313,88.48442827,100.26,100.03,215.03539361]
[1646190728511,88.48442827,100.26,100.08,0.65130699]
[1646190728512,84.32337287,100.26,100.08,0.65130699]
[1646190728711,84.32337287,100.26,100.09,12.15]
[1646190728712,14.982,100.23,100.09,12.15]
[1646190729014,52.08134627,100.21,100.09,12.15]
[1646190729212,53.41362358,100.21,100.09,12.15]
[1646190729711,75.3567073,100.21,100.09,12.15]
[1646190729914,45.83412279,100.19,100.07,17.9]
[1646190730112,16.144,100.2,100.01,4.0]
[1646190730113,47.76798117,100.17,100.01,4.0]
[1646190730311,58.45242971,100.15,100.01,4.0]
[1646190730511,112.9,100.12,99.99,12.15]
[1646190730717,60.96221984,100.12,99.99,12.15]
[1646190730918,112.9,100.11,99.991,3.997]
[1646190731117,12.15,100.1,99.98,4.0]
[1646190731316,75.87979729,100.1,99.98,4.0]
[1646190731516,102.40458993,100.09,99.931,3.998]
[1646190731716,120.111,100.09,99.931,3.998]
[1646190731920,121.52676605,100.09,99.931,3.998]
[1646190732421,47.9963,100.08,99.94,15.006]
[1646190732616,101.2,100.07,99.95,12.15]
[1646190732816,112.24380243,100.08,99.96,12.15]
[1646190733016,112.24380243,100.08,99.961,3.999]
[1646190733416,112.24380243,100.08,99.96,12.15]
[1646190733616,208.44380243,100.08,99.96,12.15]
[1646190734017,208.44380243,100.08,99.96,27.1528]
[1646190735419,107.24380243,100.08,99.96,27.1528]
[1646190736719,111.24280243,100.08,99.96,27.1528]
[1646190737121,5.0,100.07,99.96,27.1528]
[1646190737524,107.24380243,100.08,99.96,27.1528]
[1646190737923,5.0,100.07,99.96,27.1528]
[1646190738622,5.0,100.07,99.96,25.0428]
[1646190739026,107.24380243,100.08,99.96,25.0428]
[1646190739225,106.2,100.07,99.96,25.0428]
[1646190739425,101.2,100.07,99.96,25.0428]
[1646190739624,5.0,100.04,99.96,25.0428]
[1646190739933,54.4516242,100.04,99.96,15.0028]
[1646190740126,5.0,100.03,99.96,15.0028]
[1646190740525,11.38,100.03,99.94,75.7643]
[1646190740727,112.58,100.03,99.93,12.15]
[1646190741029,11.38,100.03,99.92,22.7735]
[1646190741227,107.58,100.03,99.92,22.7735]
[1646190741429,108.75775269,100.03,99.9,12.15]
[1646190741628,5.0,100.01,99.89,12.15]
[1646190741828,48.28616348,100.01,99.9,15.0127]
[1646190742429,48.28616348,100.01,99.887,48.1829]
[1646190742632,43.28616348,100.01,99.887,48.1829]
[1646190743032,52.49616348,100.01,99.887,48.1829]
[1646190743431,5.0,99.992,99.887,48.1829]
[1646190743632,57.61588499,99.991,99.887,48.1829]
[1646190744232,158.81588499,99.991,99.887,48.1829]
[1646190744434,5.0,99.979,99.887,48.1829]
[1646190744633,12.96,99.979,99.887,48.1829]
[1646190745034,7.96,99.979,99.887,48.1829]
[1646190745434,5.0,99.964,99.887,48.1829]
[1646190745635,7.96,99.979,99.887,48.1829]
[1646190745835,21.36,100.01,99.887,48.1829]
[1646190746038,4.001,100.01,99.887,48.1829]
[1646190746236,5.0,99.992,99.89,12.15]
[1646190746841,5.0,99.992,99.89,27.1641]
[1646190747045,12.15,100.03,99.891,28.65399283]
[1646190747243,5.0,100.02,99.892,2.27839788]
[1646190747445,5.0,100.02,99.893,2.17985244]
[1646190747646,240.6252,100.04,99.893,2.17985244]
[1646190747647,240.6252,100.04,99.903,60.74]
[1646190747846,193.5138,100.04,99.91,12.15]
[1646190748046,193.5138,100.04,99.911,0.39760566]
[1646190748246,193.5138,100.04,99.915,4.0]
[1646190748448,193.5138,100.04,99.93,12.15]
[1646190748849,193.5138,100.04,99.931,28.65399283]
[1646190749047,74.3574,100.04,99.96,15.0036]
[1646190749256,74.3574,100.04,99.96,27.1536]
[1646190750063,74.3574,100.04,99.97,60.74]
[1646190750260,74.3574,100.04,99.99,14.9952]
[1646190750463,40.463,100.04,100.0,12.15]
[1646190750661,40.463,100.04,99.99,12.15]
[1646190751060,40.463,100.04,99.99,7.15]
[1646190751461,40.463,100.04,99.99,22.1495]
[1646190751659,73.1538,100.1,99.99,22.1495]
[1646190751860,5.0,100.09,99.99,22.1495]
[1646190752060,5.0,100.09,99.991,0.36327655]
[1646190752262,73.1538,100.1,99.991,0.36327655]
[1646190752460,73.1538,100.1,99.99,57.1331]
[1646190752461,58.34578841,100.09,100.02,14.9953]
[1646190752661,58.34578841,100.09,100.02,27.1453]
[1646190752862,58.34578841,100.09,100.0,12.15]
[1646190753960,43.80767371,100.07,100.0,12.15]
[1646190754161,145.00767371,100.07,99.98,50.8482]
[1646190754361,145.00767371,100.07,99.98,38.6982]
[1646190754961,43.80767371,100.07,99.98,38.6982]
[1646190756163,48.80767371,100.07,99.98,38.6982]
[1646190756367,43.80767371,100.07,99.98,38.6982]
[1646190756564,48.80767371,100.07,99.98,38.6982]
[1646190757165,145.00767371,100.07,99.98,38.6982]
[1646190757572,160.01057371,100.07,99.98,38.6982]
[1646190757969,165.01057371,100.07,99.98,38.6982]
[1646190759167,160.01057371,100.07,99.98,38.6982]
[1646190759466,5.0,100.06,99.98,38.6982]
[1646190760268,5.0,100.06,99.98,10.0]
[1646190760467,15.0043,100.06,99.98,10.0]
[1646190760670,101.2,100.05,99.98,10.0]
[1646190760867,163.58812778,100.04,99.98,10.0]
[1646190761069,158.58812778,100.04,99.98,10.0]
[1646190761268,163.58812778,100.04,99.98,10.0]
[1646190761467,62.38812778,100.04,99.98,10.0]
[1646190761666,57.38812778,100.04,99.98,10.0]
[1646190761868,20.0062,100.05,99.98,10.0]
[1646190762068,73.3939,100.07,99.98,10.0]
[1646190762069,35.5199,100.07,99.98,10.0]
[1646190762469,5.0,100.06,99.98,10.0]
[1646190762670,23.3699,100.07,99.98,10.0]
[1646190762870,70.21957802,100.07,99.98,10.0]
[1646190763272,75.21957802,100.07,99.98,10.0]
[1646190764070,75.21957802,100.07,99.98,25.0021]
[1646190765075,171.41957802,100.07,99.98,25.0021]
[1646190765473,176.41957802,100.07,99.98,25.0021]
[1646190767276,75.21957802,100.07,99.98,25.0021]
[1646190767677,23.3699,100.07,99.98,25.0021]
[1646190768677,23.3699,100.07,99.98,37.1521]
[1646190769477,5.0,100.09,99.98,37.1521]
[1646190770481,106.2,100.09,99.98,37.1521]
[1646190770679,101.2,100.09,99.98,37.1521]
[1646190770882,106.2,100.09,99.98,25.0021]
[1646190772081,116.201,100.09,99.98,25.0021]
[1646190772284,5.0,100.07,99.98,25.0021]
[1646190772483,73.65672811,100.08,99.98,25.0021]
[1646190772685,73.65672811,100.08,99.98,48.2869]
[1646190772888,23.1509,100.08,99.98,60.4369]
[1646190773084,24.2866,100.1,99.98,161.6369]
[1646190773285,5.0,100.09,100.01,14.9965]
[1646190773883,56.67459761,100.09,100.01,14.9965]
[1646190776186,56.67459761,100.09,100.02,0.231859]
[1646190776187,5.0,100.09,100.02,0.231859]
[1646190776388,5.0,100.09,100.04,14.9935]
[1646190777587,5.0,100.09,100.04,27.1435]
[1646190778991,5.0,100.09,100.04,12.15]
[1646190779191,55.03913896,100.08,100.01,12.15]
[1646190779391,55.03913896,100.08,99.987,3.998]
[1646190779590,55.03913896,100.08,99.98,10.0]
[1646190779992,70.03933896,100.08,99.98,25.0016]
[1646190780193,55.03913896,100.08,99.981,3.998]
[1646190780599,60.03913896,100.08,99.981,3.998]
[1646190781197,55.03913896,100.08,100.0,14.9994]
[1646190781395,60.03913896,100.08,100.0,14.9994]
[1646190782395,101.2,100.07,100.0,14.9994]
[1646190782596,156.23913896,100.08,100.0,14.9994]
[1646190783014,161.23913896,100.08,100.0,14.9994]
[1646190783215,14.9998,100.09,100.0,14.9994]
[1646190783615,5.0,100.08,100.0,14.9994]
[1646190784414,52.40032393,100.08,100.0,14.9994]
[1646190787825,5.0,100.08,100.0,14.9994]
[1646190788823,5.35,100.09,100.0,14.9994]
[1646190789020,5.35,100.09,100.01,12.15]
[1646190789221,5.35,100.09,100.03,14.995]
[1646190790120,51.53941018,100.09,100.03,14.995]
[1646190790320,5.35,100.09,100.03,14.995]
[1646190790928,5.35,100.09,100.03,27.145]
[1646190792129,53.88829051,100.09,100.0,51.7176]
[1646190792324,48.55724615,100.07,99.97,12.15]
[1646190792725,48.55724615,100.07,99.98,22.15]
[1646190793526,63.55984615,100.07,99.98,37.1516]
[1646190794527,68.55984615,100.07,99.98,37.1516]
[1646190795130,169.75984615,100.07,99.98,37.1516]
[1646190795931,68.55984615,100.07,99.98,37.1516]
[1646190796131,5.0,100.07,99.98,37.1516]
[1646190796331,0.35,100.09,100.0,116.1965]
[1646190796534,0.35,100.09,100.01,12.15]
[1646190798235,0.35,100.09,100.03,14.9933]
[1646190798435,0.35,100.09,100.0,27.11374003]
[1646190798634,0.35,100.09,100.01,12.15]
[1646190800040,0.35,100.09,100.01,27.1451]
[1646190802744,0.35,100.09,100.02,101.2]
[1646190802945,0.35,100.09,100.03,27.143]
[1646190804348,0.35,100.09,99.991,2.11969013]
[1646190804349,10.0,100.07,99.901,112.9]
[1646190804547,102.7056201,100.06,99.85,20.86812336]
[1646190804847,0.15054804,100.05,99.895,4.0]
[1646190805048,173.5790987,100.04,99.88,15.0114]
[1646190805251,173.5790987,100.04,99.88,27.1614]
[1646190805447,116.2066202,100.04,99.88,72.89]
[1646190805654,27.1573,100.04,99.881,1.18295529]
[1646190805854,27.1573,100.04,99.921,101.2]
[1646190806053,32.1573,100.04,99.922,148.1848]
[1646190806452,17.15,100.04,99.922,208.9248]
[1646190806652,5.0,100.04,99.922,208.9248]
[1646190806956,45.2842,100.05,99.922,208.9248]
[1646190807154,45.2842,100.05,99.94,161.94]
[1646190807356,45.2842,100.05,99.94,174.09]
[1646190807956,45.2842,100.05,99.951,101.2]
[1646190808156,191.3391,100.07,99.97,116.1999]
[1646190808555,191.3391,100.07,99.97,128.3499]
[1646190808955,191.3391,100.07,99.99,101.2]
[1646190809370,191.3391,100.07,100.0,14.9954]
[1646190809771,77.1125,100.07,100.0,14.9954]
[1646190811576,77.1125,100.07,99.98,87.1033]
[1646190812177,0.35,100.09,99.98,87.1033]
[1646190812676,0.35,100.09,99.99,161.94]
[1646190812875,0.35,100.09,99.991,0.25115539]
[1646190813275,0.35,100.09,99.99,174.09]
[1646190813475,0.35,100.09,99.99,12.15]
[1646190813677,0.35,100.09,99.991,3.998]
[1646190815078,0.35,100.09,100.01,14.996]
[1646190815278,16.93496332,100.09,99.99,3.998]
[1646190815479,16.93496332,100.09,99.98,24.9687]
[1646190815880,5.0,100.08,99.98,24.9687]
[1646190816078,5.0,100.08,99.99,14.9981]
[1646190816379,59.9662742,100.08,99.98,24.9687]
[1646190816582,64.9662742,100.08,99.98,24.9687]
[1646190816981,5.0,100.08,99.98,24.9687]
[1646190817184,5.0,100.08,99.98,126.1687]
[1646190817383,0.35,100.09,99.98,39.9692]
[1646190817587,15.0005,100.08,99.98,39.9692]
[1646190817788,5.0,100.07,99.98,39.9692]
[1646190819383,48.7486,100.08,99.98,143.71824003]
[1646190819584,53.7486,100.08,99.98,143.71824003]
[1646190819786,5.0,100.08,100.01,14.9965]
[1646190819984,0.35,100.09,100.01,116.1965]
[1646190820185,0.35,100.09,100.02,2.54904003]
[1646190820584,0.35,100.09,100.02,115.89904003]
[1646190820985,0.35,100.09,100.04,14.9924]
[1646190823585,2.16,100.1,100.04,116.1924]
[1646190823788,3.997,100.14,100.07,101.2]
[1646190823988,3.995,100.19,100.07,113.35]
[1646190824191,3.995,100.19,100.08,152.22804003]
[1646190824392,5.19380829,100.2,100.08,164.37804003]
[1646190824590,62.95191479,100.21,100.08,161.829]
[1646190824591,105.65398739,100.21,100.08,161.829]
[1646190824795,61.2676,100.21,100.09,116.1831]
[1646190824997,46.5583,100.21,100.1,113.35]
[1646190825195,1.8725535,100.22,100.1,197.82405194]
[1646190825395,1.8725535,100.22,100.12,101.2]
[1646190825594,1.8725535,100.22,100.13,12.15]
[1646190825792,1.8725535,100.22,100.13,14.69904003]
[1646190826194,1.8725535,100.22,100.14,2.54904003]
[1646190826392,1.8725535,100.22,100.16,14.9728]
[1646190826594,1.8725535,100.22,100.16,27.1228]
[1646190826994,0.8725535,100.22,100.16,27.1228]
[1646190827196,0.8725535,100.22,100.16,26.1228]
[1646190827396,0.8725535,100.22,100.16,28.67184003]
[1646190827898,0.8725535,100.22,100.16,26.1228]
[1646190828495,0.8725535,100.22,100.18,14.9685]
[1646190828696,0.8725535,100.22,100.18,27.1185]
[1646190828897,0.8725535,100.22,100.18,29.66754003]
[1646190829095,0.8725535,100.22,100.18,27.1185]
[1646190829298,29.2004114,100.27,100.18,27.1185]
[1646190829496,5.0897114,100.27,100.18,33.65854003]
[1646190829697,5.0897114,100.27,100.18,234.04466545]
[1646190829900,5.0897114,100.27,100.21,14.9612]
[1646190830097,31.3618,100.3,100.23,49.8646]
[1646190830303,31.3618,100.3,100.24,12.15]
[1646190830499,15.8400671,100.3,100.25,12.15]
[1646190830698,69.6614,100.37,100.25,18.529]
[1646190830898,69.6614,100.37,100.27,14.957]
[1646190831100,3.987,100.36,100.25,23.09167858]
[1646190831300,3.987,100.36,100.23,46.5662]
[1646190831600,59.8602582,100.35,100.25,12.15]
[1646190832001,57.85821085,100.35,100.25,12.15]
[1646190832205,59.45664439,100.35,100.25,27.1092]
[1646190832814,59.45664439,100.35,100.25,12.15]
[1646190833009,74.41864439,100.35,100.25,12.15]
[1646190833405,5.0,100.32,100.25,12.15]
[1646190834206,4.5,100.32,100.23,14.9617]
[1646190834405,4.5,100.32,100.23,27.1117]
[1646190834605,60.52229403,100.33,100.23,27.1117]
[1646190835929,58.53803626,100.33,100.23,27.1117]
[1646190836829,40.0224368,100.35,100.23,27.1117]
[1646190837029,45.0224368,100.35,100.24,15.20384723]
[1646190837229,45.0224368,100.35,100.25,12.15]
[1646190837430,45.0224368,100.35,100.22,3.988]
[1646190837631,46.2424368,100.35,100.23,12.15]
[1646190837832,49.58158865,100.34,100.24,12.15]
[1646190839432,72.81018865,100.34,100.22,12.15]
[1646190839635,50.00514659,100.32,100.19,12.15]
[1646190839931,50.00514659,100.32,100.17,3.989]
[1646190839932,14.08627183,100.31,100.17,3.989]
[1646190840133,46.56310343,100.3,100.17,3.989]
[1646190840337,60.74424618,100.3,100.17,3.989]
[1646190840531,75.48607903,100.3,100.17,14.69904003]
[1646190840832,3.99,100.31,100.17,14.69904003]
[1646190841033,74.48647003,100.32,100.18,3.99]
[1646190841232,74.48647003,100.32,100.19,12.15]
[1646190841632,3.989,100.31,100.21,14.9645]
[1646190841834,72.7724,100.32,100.22,12.15]
[1646190842033,72.7724,100.32,100.22,14.69904003]
[1646190842435,72.7724,100.32,100.22,12.15]
[1646190843035,72.7724,100.32,100.24,14.96]
[1646190843638,20.96098521,100.36,100.25,12.15]
[1646190843935,53.51391987,100.38,100.26,12.15]
[1646190844136,73.98091875,100.37,100.26,12.15]
[1646190844536,20.94852694,100.37,100.26,12.15]
[1646190844736,47.9071,100.38,100.26,12.15]
[1646190844737,49.71309539,100.38,100.26,12.15]
[1646190845036,47.9071,100.38,100.27,60.74]
[1646190845237,12.15,100.42,100.29,60.74]
[1646190845238,3.987,100.42,100.29,60.74]
[1646190845440,116.41772588,100.44,100.32,101.2]
[1646190845441,3.985,100.43,100.32,101.2]
[1646190845638,1.69556319,100.44,100.33,12.15]
[1646190845838,223.4183422,100.46,100.34,161.94]
[1646190846037,223.4183422,100.46,100.35,12.15]
[1646190846240,152.3752422,100.46,100.35,12.15]
[1646190846440,152.3752422,100.46,100.35,27.0961]
[1646190846639,118.88716123,100.46,100.35,27.0961]
[1646190847239,3.983,100.45,100.35,27.0961]
[1646190847540,123.88716123,100.46,100.35,27.0961]
[1646190847944,70.2330422,100.46,100.35,29.64514003]
[1646190848139,75.2330422,100.46,100.35,130.84514003]
[1646190848340,27.7125,100.46,100.37,101.2]
[1646190848539,27.7125,100.46,100.39,14.9394]
[1646190848739,5.0,100.46,100.39,14.9394]
[1646190848940,61.69533824,100.47,100.39,27.0894]
[1646190849142,63.47513189,100.47,100.39,27.0894]
[1646190850241,58.47513189,100.47,100.39,27.0894]
[1646190850444,63.47513189,100.47,100.39,27.0894]
[1646190851040,56.69533824,100.47,100.39,27.0894]
[1646190851243,61.69533824,100.47,100.39,27.0894]
[1646190852842,63.65358741,100.47,100.39,27.0894]
[1646190853242,5.0,100.45,100.39,27.0894]
[1646190854443,0.50005179,100.47,100.39,27.0894]
[1646190854644,5.50005179,100.47,100.39,27.0894]
[1646190854845,0.50005179,100.47,100.39,27.0894]
[1646190855045,5.50005179,100.47,100.39,27.0894]